bitfinex/quotes_BTCUSD_20230113
["timestamp","ask_amount","ask_price","bid_price","bid_amount"]
[1673608876584,4.869986,19003.0,19001.0,0.00826461]
[1673608877118,5.41044914,19003.0,19001.0,0.00826461]
[1673608877377,5.465387,19003.0,19001.0,0.00826461]
[1673608877640,5.05242386,19003.0,19001.0,0.00826461]
[1673608877909,5.46557986,19003.0,19001.0,0.00826461]
[1673608878457,5.46546313,19003.0,19001.0,0.00826461]
[1673608878726,5.46546267,19003.0,19001.0,0.00826461]
[1673608879168,6.50902561,19003.0,19001.0,0.00826461]
[1673608879175,6.56165835,19003.0,19001.0,0.00826461]
[1673608879729,6.26134894,19003.0,19001.0,0.00826461]
[1673608879986,5.80406066,19003.0,19001.0,0.00826461]
[1673608880491,4.52795211,19003.0,19002.0,0.21766412]
[1673608880494,4.28427479,19003.0,19002.0,0.21766412]
[1673608880758,4.0725623,19003.0,19002.0,0.00735918]
[1673608881566,4.0725623,19003.0,19002.0,0.00166949]
[1673608882660,4.3725623,19003.0,19002.0,0.00166949]
[1673608883438,4.0725623,19003.0,19002.0,0.00166949]
[1673608883717,3.98115912,19003.0,19002.0,0.00166949]
[1673608884837,4.28115912,19003.0,19002.0,0.00166949]
[1673608885362,3.98115912,19003.0,19002.0,0.00166949]
[1673608886165,2.78782642,19003.0,19002.0,0.00166949]
[1673608886707,3.08782642,19003.0,19002.0,0.00166949]
[1673608887246,2.78782642,19003.0,19002.0,0.00166949]
[1673608888055,2.13729682,19003.0,19002.0,0.17461949]
[1673608888326,2.13729682,19003.0,19002.0,0.09356949]
[1673608888575,2.13729682,19003.0,19002.0,0.63585105]
[1673608888839,0.13729682,19003.0,19002.0,0.72815105]
[1673608889115,0.13729682,19003.0,19002.0,1.05597105]
[1673608889382,0.13729682,19003.0,19002.0,0.72815105]
[1673608889383,0.00129682,19003.0,19002.0,0.72815105]
[1673608889682,0.05129682,19003.0,19002.0,0.72815105]
[1673608889910,0.00129682,19003.0,19002.0,0.72815105]
[1673608890171,0.00829682,19003.0,19002.0,0.74215105]
[1673608893850,0.00829682,19003.0,19002.0,0.55795105]
[1673608896500,0.00829682,19003.0,19002.0,0.01566949]
[1673608896501,0.75631393,19003.0,19002.0,0.01566949]
[1673608896760,0.96329822,19003.0,19002.0,0.01555704]
[1673608897285,1.19847554,19003.0,19002.0,0.01555704]
[1673608897546,3.19847554,19003.0,19002.0,0.01555704]
[1673608897805,3.34968067,19003.0,19002.0,0.01555704]
[1673608898330,3.80648181,19003.0,19002.0,0.01555704]
[1673608898590,3.81533526,19003.0,19002.0,0.01555704]
[1673608899405,3.81533526,19003.0,19002.0,0.00155704]
[1673608899406,3.80833526,19003.0,19002.0,0.00155704]
[1673608899690,4.56957314,19003.0,19002.0,0.00255704]
[1673608899954,3.94433526,19003.0,19002.0,0.00155704]
[1673608900416,4.08033526,19003.0,19002.0,0.00255704]
[1673608900955,4.0821027,19003.0,19002.0,0.00255704]
[1673608901481,3.68835632,19003.0,19002.0,0.00255704]
[1673608901741,4.78372224,19003.0,19002.0,0.00255704]
[1673608902000,3.68835632,19003.0,19002.0,0.00255704]
[1673608903578,3.68835632,19003.0,19002.0,0.00067267]
[1673608904054,3.68835626,19003.0,19002.0,0.00067267]
[1673608905829,4.00915784,19003.0,19002.0,0.00067267]
[1673608906077,3.80127591,19003.0,19002.0,0.21097761]
[1673608906333,4.19506251,19003.0,19002.0,0.00067267]
[1673608906647,3.4082389,19003.0,19002.0,0.00067267]
[1673608906846,1.4082389,19003.0,19002.0,0.00067267]
[1673608907117,1.488686,19003.0,19002.0,0.00067267]
[1673608907382,1.50825,19003.0,19002.0,0.00067267]
[1673608907627,1.23116845,19003.0,19002.0,0.00067267]
[1673608907929,1.23116845,19003.0,19001.0,0.0923]
[1673608908918,0.72291656,19003.0,19001.0,0.60787019]
[1673608909178,0.72291656,19003.0,19001.0,0.60887019]
[1673608909453,0.85891656,19003.0,19001.0,0.60887019]
[1673608909977,0.85891656,19003.0,19001.0,0.60864019]
[1673608909978,1.09516845,19003.0,19001.0,0.60864019]
[1673608910725,0.85891656,19003.0,19001.0,0.60864019]
[1673608911278,0.29479178,19003.0,19001.0,0.60864019]
[1673608912026,0.13729676,19003.0,19001.0,0.60864019]
[1673608912274,0.29479178,19003.0,19001.0,0.60864019]
[1673608912527,0.13729676,19003.0,19001.0,0.60864019]
[1673608912779,0.13729676,19003.0,19002.0,0.54367085]
[1673608914065,0.15686076,19003.0,19002.0,0.54467085]
[1673608914579,0.29479178,19003.0,19002.0,0.001]
[1673608914835,1.6103036,19003.0,19002.0,0.001]
[1673608915107,1.95205118,19003.0,19002.0,0.001]
[1673608916109,1.63703861,19003.0,19002.0,0.001]
[1673608916616,1.40262964,19003.0,19002.0,0.001]
[1673608917616,1.95741017,19003.0,19002.0,0.001]
[1673608917873,1.9512312,19003.0,19002.0,0.001]
[1673608918200,2.26627843,19003.0,19002.0,0.001]
[1673608918642,1.9512312,19003.0,19002.0,0.001]
[1673608918923,1.9511712,19003.0,19002.0,0.001]
[1673608919703,2.26631798,19003.0,19002.0,0.001]
[1673608919967,1.9511712,19003.0,19002.0,0.001]
[1673608920282,2.26631786,19003.0,19002.0,0.001]
[1673608922640,1.9511712,19003.0,19002.0,0.001]
[1673608924260,1.95123383,19003.0,19002.0,0.001]
[1673608925276,2.44635721,19003.0,19002.0,0.001]
[1673608925539,2.14659698,19003.0,19002.0,0.001]
[1673608926337,2.14659747,19003.0,19002.0,0.001]
[1673608926593,1.75253618,19003.0,19002.0,0.001]
[1673608926864,1.95146926,19003.0,19002.0,0.001]
[1673608927635,1.5574128,19003.0,19002.0,0.001]
[1673608930263,1.40263227,19003.0,19002.0,0.001]
[1673608930535,1.99112775,19003.0,19002.0,0.001]
[1673608930825,1.4728319,19003.0,19002.0,0.001]
[1673608931060,2.07912565,19003.0,19002.0,0.001]
[1673608934384,1.70892602,19003.0,19002.0,0.001]
[1673608937567,1.68936202,19003.0,19002.0,0.001]
[1673608938091,1.70892602,19003.0,19002.0,0.001]
[1673608938362,1.18269332,19003.0,19002.0,0.001]
[1673608938646,1.16312932,19003.0,19002.0,0.001]
[1673608938892,1.18269332,19003.0,19002.0,0.001]
[1673608939530,1.57691772,19003.0,19002.0,0.001]
[1673608939728,1.57691772,19003.0,19002.0,0.00092971]
[1673608939729,1.5769181,19003.0,19002.0,0.00092971]
[1673608940031,1.57691882,19003.0,19002.0,0.00092971]
[1673608940303,1.55735482,19003.0,19002.0,0.00092971]
[1673608940562,1.57691882,19003.0,19002.0,0.00092971]
[1673608941937,1.55735482,19003.0,19002.0,0.00092971]
[1673608942785,1.57691882,19003.0,19002.0,0.00092971]
[1673608943304,1.55735482,19003.0,19002.0,0.00092971]
[1673608944640,1.16312787,19003.0,19002.0,0.00092971]
[1673608946033,1.18269187,19003.0,19002.0,0.00092971]
[1673608946350,1.48269187,19003.0,19002.0,0.00092971]
[1673608946870,1.18269187,19003.0,19002.0,0.00092971]
[1673608947137,1.16312787,19003.0,19002.0,0.00092971]
[1673608947410,1.18269187,19003.0,19002.0,0.00092971]
[1673608948489,1.48269187,19003.0,19002.0,0.00092971]
[1673608948804,2.17439443,19003.0,19002.0,0.00092971]
[1673608949618,2.64640114,19003.0,19002.0,0.00092971]
[1673608950429,2.48093128,19003.0,19002.0,0.00092971]
[1673608950680,2.18093128,19003.0,19002.0,0.00092971]
[1673608950940,2.48093128,19003.0,19002.0,0.00092971]
[1673608951195,2.18093128,19003.0,19002.0,0.00092971]
[1673608951443,1.70892457,19003.0,19002.0,0.00092971]
[1673608951740,2.18093128,19003.0,19002.0,0.00092971]
[1673608951984,1.70892457,19003.0,19002.0,0.00092971]
[1673608952571,2.18093128,19003.0,19002.0,0.00092971]
[1673608952781,1.63536656,19003.0,19002.0,0.0002448]
[1673608954727,2.16663353,19003.0,19002.0,0.0002448]
[1673608958203,2.16663353,19003.0,19002.0,4.313e-05]
[1673608958204,2.55528604,19003.0,19002.0,4.313e-05]
[1673608958489,2.9321637,19003.0,19002.0,4.313e-05]
[1673608958759,2.42846652,19003.0,19002.0,4.313e-05]
[1673608959016,0.08106687,19001.0,19000.0,0.04826461]
[1673608959324,1.79497685,19001.0,19000.0,0.04826461]
[1673608959580,2.12304085,19001.0,19000.0,0.04826461]
[1673608959835,0.1,19000.0,18999.0,0.00879059]
[1673608960098,1.7936738,19000.0,18999.0,0.00879059]
[1673608960349,3.11560099,19000.0,18999.0,0.00879059]
[1673608960627,3.58755177,19000.0,18999.0,0.00879059]
[1673608960892,3.72455177,19000.0,18999.0,0.00879059]
[1673608962181,4.87125177,19000.0,18999.0,0.00879059]
[1673608962692,4.33909745,19000.0,18999.0,0.00879059]
[1673608962976,4.87036013,19000.0,18999.0,0.00879059]
[1673608963309,5.28546013,19000.0,18999.0,0.00879059]
[1673608963869,5.28546013,19000.0,18999.0,5.9e-07]
[1673608963870,5.84046013,19000.0,18999.0,5.9e-07]
[1673608964124,0.3168,18998.0,18997.0,0.00968762]
[1673608964386,2.68919605,18998.0,18997.0,0.00968762]
[1673608964659,2.60581623,18998.0,18997.0,0.00968762]
[1673608964906,1.9962747,18998.0,18997.0,0.00968762]
[1673608965432,1.63677531,18998.0,18997.0,0.00968762]
[1673608965695,1.3794936,18998.0,18997.0,0.00968762]
[1673608966467,1.6475347,18998.0,18997.0,0.00968762]
[1673608966720,1.9475347,18998.0,18997.0,0.00968762]
[1673608967240,1.4946936,18998.0,18997.0,0.00968762]
[1673608967501,1.96477578,18998.0,18997.0,0.00968762]
[1673608967769,2.02448268,18998.0,18997.0,0.00968762]
[1673608968014,2.84411975,18998.0,18997.0,0.00968762]
[1673608968520,1.88782546,18998.0,18997.0,0.00968762]
[1673608968798,1.94897323,18998.0,18997.0,0.00968762]
[1673608969087,0.15692472,18998.0,18997.0,0.00968762]
[1673608969333,0.13736072,18998.0,18997.0,0.00968762]
[1673608969606,0.15692472,18998.0,18997.0,0.00968762]
[1673608970129,0.13736072,18998.0,18997.0,0.00968762]
[1673608971147,0.13736072,18998.0,18997.0,0.64551337]
[1673608971408,0.00136072,18998.0,18997.0,0.73801337]
[1673608971676,0.05330072,18998.0,18997.0,0.74001337]
[1673608972724,0.05330072,18998.0,18997.0,0.01168762]
[1673608972725,0.70455105,18998.0,18997.0,0.01168762]
[1673608973007,0.79073419,18998.0,18997.0,0.01168762]
[1673608973268,0.70455105,18998.0,18997.0,0.01168762]
[1673608973559,0.72411505,18998.0,18997.0,0.01168762]
[1673608974333,0.72411505,18998.0,18997.0,0.00968762]
[1673608974334,0.67211505,18998.0,18997.0,0.00968762]
[1673608974593,0.79711505,18998.0,18997.0,0.01168762]
[1673608974865,0.92614112,18998.0,18997.0,0.01168762]
[1673608975122,1.02614112,18998.0,18997.0,0.01168762]
[1673608975662,1.32614112,18998.0,18997.0,0.01168762]
[1673608976201,1.35433545,18998.0,18997.0,0.01168762]
[1673608976730,1.88056815,18998.0,18997.0,0.01168762]
[1673608977008,2.11643341,18998.0,18997.0,0.01168762]
[1673608977272,1.46518308,18998.0,18997.0,0.01168762]
[1673608977540,1.86986268,18998.0,18997.0,0.01168762]
[1673608977799,2.4981657,18998.0,18997.0,0.01168762]
[1673608979221,2.4981657,18998.0,18997.0,0.0032249]
[1673608979222,2.7474323,18998.0,18997.0,0.0032249]
[1673608979484,3.29336839,18998.0,18997.0,0.0032249]
[1673608980037,3.23079169,18998.0,18997.0,0.0032249]
[1673608980302,2.84121832,18998.0,18997.0,0.0032249]
[1673608980563,2.84121832,18998.0,18997.0,0.0012249]
[1673608980564,3.40865181,18998.0,18997.0,0.0012249]
[1673608980834,3.54465181,18998.0,18997.0,0.0012249]
[1673608981346,2.71621832,18998.0,18997.0,0.0012249]
[1673608981864,3.00982548,18998.0,18997.0,0.0012249]
[1673608982123,2.91782548,18998.0,18997.0,0.0012249]
[1673608982389,3.35138463,18998.0,18997.0,0.0012249]
[1673608984765,3.25888463,18998.0,18997.0,0.0012249]
[1673608985294,3.25888333,18998.0,18997.0,0.0012249]
[1673608985597,1.66758294,18998.0,18997.0,0.0012249]
[1673608987180,1.14135024,18998.0,18997.0,0.0012249]
[1673608989596,1.1689262,18998.0,18997.0,0.0012249]
[1673608989833,1.14145031,18998.0,18997.0,0.0012249]
[1673608990097,1.14145028,18998.0,18997.0,0.0012249]
[1673608990944,1.29851033,18998.0,18997.0,0.0012249]
[1673608992028,0.55035166,18998.0,18997.0,0.0822749]
[1673608992339,0.53078766,18998.0,18997.0,0.65287062]
[1673608992612,0.2947941,18998.0,18997.0,0.65287062]
[1673608993137,0.13729942,18998.0,18997.0,0.65287062]
[1673608993394,0.2947941,18998.0,18997.0,0.65287062]
[1673608995060,0.53078766,18998.0,18997.0,0.65287062]
[1673608995583,0.2947941,18998.0,18997.0,0.65287062]
[1673608996670,0.53078766,18998.0,18997.0,0.65287062]
[1673608997717,1.04826869,18998.0,18997.0,0.0012249]
[1673608997977,1.30526105,18998.0,18997.0,0.0012249]
[1673608998256,1.48126696,18998.0,18997.0,0.0012249]
[1673608998509,1.3056722,18998.0,18997.0,0.0012249]
[1673608999364,1.2056722,18998.0,18997.0,0.0012249]
[1673608999658,1.3056722,18998.0,18997.0,0.0012249]
[1673609000537,1.26624948,18998.0,18997.0,0.0012249]
[1673609000828,2.69551837,18998.0,18997.0,0.00034343]
[1673609004228,2.22327612,18998.0,18997.0,0.00034343]
[1673609004487,2.31577612,18998.0,18997.0,0.00034343]
[1673609005741,2.31577577,18998.0,18997.0,0.00034343]
[1673609007481,2.75019,18998.0,18997.0,0.00034343]
[1673609008097,1.6394573,18998.0,18997.0,0.21064837]
[1673609008100,1.56060234,18998.0,18997.0,0.00034343]
[1673609008287,1.54103834,18998.0,18997.0,0.00034343]
[1673609008529,1.16195586,18998.0,18997.0,0.62394824]
[1673609008775,0.29490824,18998.0,18997.0,0.95176824]
[1673609009281,0.29490824,18998.0,18997.0,0.62394824]
[1673609009534,0.53132703,18998.0,18997.0,0.62394824]
[1673609009805,0.15890824,18998.0,18997.0,0.62394824]
[1673609010050,0.21090824,18998.0,18997.0,0.62594824]
[1673609010297,0.23771786,18998.0,18997.0,0.00034343]
[1673609010589,0.65295379,18998.0,18997.0,0.00034343]
[1673609011051,0.60495379,18998.0,18997.0,0.00234343]
[1673609011284,0.60495379,18998.0,18997.0,0.00034343]
[1673609011526,0.70495379,18998.0,18997.0,0.00034343]
[1673609012288,0.72995379,18998.0,18997.0,0.00234343]
[1673609012570,0.65295379,18998.0,18997.0,0.00034343]
[1673609012835,0.68795379,18998.0,18997.0,0.00234343]
[1673609013345,0.53031355,18998.0,18997.0,0.66550102]
[1673609013590,0.50953314,18998.0,18997.0,0.66550102]
[1673609015796,0.29259569,18998.0,18997.0,0.66550102]
[1673609017261,0.29259569,18998.0,18997.0,0.00234343]
[1673609017496,0.39259569,18998.0,18997.0,0.00234343]
[1673609017722,0.29259569,18998.0,18997.0,0.00234343]
[1673609019247,0.39259569,18998.0,18997.0,0.00234343]
[1673609019727,0.29259569,18998.0,18997.0,0.00234343]
[1673609019979,0.39259569,18998.0,18997.0,0.00234343]
[1673609020952,0.29259569,18998.0,18997.0,0.00234343]
[1673609021746,0.39259569,18998.0,18997.0,0.00234343]
[1673609022250,0.94253338,18998.0,18997.0,0.00234343]
[1673609022542,1.53319055,18998.0,18997.0,0.00234343]
[1673609022751,1.62717702,18998.0,18997.0,0.00234343]
[1673609023480,1.53319055,18998.0,18997.0,0.00234343]
[1673609024944,1.92721747,18998.0,18997.0,0.00234343]
[1673609025189,1.52721747,18998.0,18997.0,0.00234343]
[1673609025437,1.82286303,18998.0,18997.0,0.00234343]
[1673609025680,1.82416541,18998.0,18997.0,0.00234343]
[1673609025950,1.84372941,18998.0,18997.0,0.00234343]
[1673609026440,1.82416541,18998.0,18997.0,0.00234343]
[1673609026924,1.84372941,18998.0,18997.0,0.00234343]
[1673609027667,1.82416541,18998.0,18997.0,0.00234343]
[1673609030371,1.51069327,18998.0,18997.0,0.00234343]
[1673609030613,1.3530682,18998.0,18997.0,0.00234343]
[1673609030857,1.35306826,18998.0,18997.0,0.00234343]
[1673609031692,1.35306747,18998.0,18997.0,0.00234343]
[1673609032211,1.35236641,18998.0,18997.0,0.00234343]
[1673609032731,1.82410971,18998.0,18997.0,0.00234343]
[1673609032982,1.35236535,18998.0,18997.0,0.00234343]
[1673609033243,1.82413029,18998.0,18997.0,0.00234343]
[1673609034517,1.35238016,18998.0,18997.0,0.00234343]
[1673609035311,1.35238981,18998.0,18997.0,0.00234343]
[1673609037146,1.35238777,18998.0,18997.0,0.00234343]
[1673609037507,1.11596549,18998.0,18997.0,0.00234343]
[1673609038456,1.50999241,18998.0,18997.0,0.00234343]
[1673609038754,1.35239963,18998.0,18997.0,0.00234343]
[1673609039159,1.11596549,18998.0,18997.0,0.00234343]
[1673609039386,1.50999241,18998.0,18997.0,0.00234343]
[1673609039597,1.11596549,18998.0,18997.0,0.00234343]
[1673609039843,1.79502025,18998.0,18997.0,0.00234343]
[1673609040059,1.81458425,18998.0,18997.0,0.00234343]
[1673609040282,1.52955641,18998.0,18997.0,0.00234343]
[1673609040526,0.29321832,18998.0,18997.0,0.67182628]
[1673609042847,0.13560152,18998.0,18997.0,0.67182628]
[1673609043069,0.29321832,18998.0,18997.0,0.67182628]
[1673609044203,0.29321832,18998.0,18997.0,0.59077628]
[1673609045115,0.52965386,18998.0,18997.0,0.59077628]
[1673609045348,0.87214242,18998.0,18997.0,0.00234343]
[1673609045593,1.28735198,18998.0,18997.0,0.00234343]
[1673609045823,1.2860496,18998.0,18997.0,0.00234343]
[1673609046041,1.28734812,18998.0,18997.0,0.00234343]
[1673609046552,0.95091258,18998.0,18997.0,0.00234343]
[1673609046772,1.63052739,18998.0,18997.0,0.00234343]
[1673609046997,0.92129091,18998.0,18997.0,0.00234343]
[1673609047218,1.22129091,18998.0,18997.0,0.00234343]
[1673609047439,1.34085491,18998.0,18997.0,0.00234343]
[1673609047666,1.32129091,18998.0,18997.0,0.00234343]
[1673609048137,1.02129091,18998.0,18997.0,0.00234343]
[1673609049037,1.32129091,18998.0,18997.0,0.00234343]
[1673609049955,1.02129091,18998.0,18997.0,0.00234343]
[1673609054429,1.32129091,18998.0,18997.0,0.00234343]
[1673609055193,1.02129091,18998.0,18997.0,0.00234343]
[1673609055707,1.32129091,18998.0,18997.0,0.00234343]
[1673609055995,1.32129091,18998.0,18997.0,0.00227609]
[1673609055996,1.81377111,18998.0,18997.0,0.00227609]
[1673609056469,2.07700714,18998.0,18997.0,0.00088708]
[1673609056799,1.45888225,18998.0,18997.0,0.00088708]
[1673609056970,1.91172335,18998.0,18997.0,0.00088708]
[1673609058046,1.45888225,18998.0,18997.0,0.00088708]
[1673609058532,2.22661962,18998.0,18997.0,0.00088708]
[1673609059810,2.01759814,18998.0,18997.0,0.00088708]
[1673609060071,1.45888225,18998.0,18997.0,0.00088708]
[1673609060595,2.10658125,18998.0,18997.0,0.00088708]
[1673609060829,1.45888225,18998.0,18997.0,0.00088708]
[1673609062622,2.01456433,18998.0,18997.0,0.00088708]
[1673609062876,1.72347194,18998.0,18997.0,0.00088708]
[1673609063388,2.91513967,18998.0,18997.0,0.00023096]
[1673609063653,1.45888225,18998.0,18997.0,0.00023096]
[1673609064155,2.06523523,18998.0,18997.0,0.00023096]
[1673609064433,1.45888225,18998.0,18997.0,0.00023096]
[1673609064946,1.66790373,18998.0,18997.0,0.00023096]
[1673609065700,2.14129299,18998.0,18997.0,0.00023096]
[1673609066214,2.6141462,18998.0,18997.0,0.00015058]
[1673609066459,2.61414597,18998.0,18997.0,0.00015058]
[1673609070063,2.70658911,18998.0,18997.0,0.00015058]
[1673609070315,2.5813314,18998.0,18997.0,0.00015058]
[1673609072149,2.70655196,18998.0,18997.0,0.00015058]
[1673609072612,2.23379276,18998.0,18997.0,0.00015058]
[1673609073112,1.55138202,18998.0,18997.0,0.00015058]
[1673609073361,2.00422312,18998.0,18997.0,3.931e-05]
[1673609073614,2.96855655,18998.0,18997.0,3.931e-05]
[1673609073863,3.49967282,18998.0,18997.0,3.931e-05]
[1673609074599,0.1,18997.0,18996.0,2.00968762]
[1673609074854,1.39582059,18997.0,18996.0,2.00968762]
[1673609075096,1.41538459,18997.0,18996.0,2.00968762]
[1673609075345,3.41538459,18997.0,18996.0,2.00968762]
[1673609075836,3.85106171,18997.0,18996.0,2.00968762]
[1673609076568,3.85106171,18997.0,18996.0,0.97283353]
[1673609076813,3.87274281,18997.0,18996.0,0.97283353]
[1673609077356,4.94049246,18997.0,18996.0,0.97283353]
[1673609077598,5.46383347,18997.0,18996.0,0.97283353]
[1673609078847,5.59983347,18997.0,18996.0,0.97283353]
[1673609079330,5.07649246,18997.0,18996.0,0.97283353]
[1673609079590,4.24521993,18997.0,18996.0,0.97283353]
[1673609079876,4.21145669,18997.0,18996.0,0.97283353]
[1673609080956,4.11151669,18997.0,18996.0,0.97283353]
[1673609081184,3.63896747,18997.0,18996.0,0.97283353]
[1673609082487,3.93896747,18997.0,18996.0,0.97283353]
[1673609084285,4.41151669,18997.0,18996.0,0.97283353]
[1673609084540,4.20412531,18997.0,18996.0,0.97283353]
[1673609084871,3.73157609,18997.0,18996.0,0.97283353]
[1673609085835,3.73151609,18997.0,18996.0,0.97283353]
[1673609086358,4.27680611,18997.0,18996.0,0.97283353]
[1673609086639,4.27810436,18997.0,18996.0,0.97283353]
[1673609086883,5.31733861,18997.0,18996.0,0.46681155]
[1673609087134,5.45481639,18997.0,18996.0,0.46681155]
[1673609088665,4.99068489,18997.0,18996.0,0.46681155]
[1673609090764,4.45941236,18997.0,18996.0,0.46681155]
[1673609091046,4.6436237,18997.0,18996.0,0.46681155]
[1673609091561,4.99155836,18997.0,18996.0,0.46681155]
[1673609092333,5.15588831,18997.0,18996.0,0.46681155]
[1673609093904,4.53420014,18997.0,18996.0,0.46681155]
[1673609094171,4.88287579,18997.0,18996.0,0.46681155]
[1673609094472,5.23081045,18997.0,18996.0,0.46681155]
[1673609096046,4.53420014,18997.0,18996.0,0.46681155]
[1673609096306,4.82389843,18997.0,18996.0,0.46681155]
[1673609096583,4.18626548,18997.0,18996.0,0.40842978]
[1673609096842,4.80113783,18997.0,18996.0,0.40842978]
[1673609097112,4.18626548,18997.0,18996.0,0.40842978]
[1673609097908,4.18626548,18997.0,18996.0,0.2433234]
[1673609098172,4.64403828,18997.0,18996.0,0.2433234]
[1673609098432,4.53420014,18997.0,18996.0,0.2433234]
[1673609098696,4.64403828,18997.0,18996.0,0.2433234]
[1673609099239,4.99197294,18997.0,18996.0,0.2433234]
[1673609099498,5.25662686,18997.0,18996.0,0.2433234]
[1673609100044,5.17670038,18997.0,18995.0,0.00997779]
[1673609100300,5.17670038,18997.0,18993.0,0.00934937]
[1673609100301,0.11827902,18995.0,18993.0,0.00934937]
[1673609100743,1.95709735,18994.0,18993.0,0.00934937]
[1673609100744,1.82177783,18994.0,18993.0,0.00934937]
[1673609101006,2.40657783,18994.0,18993.0,0.00934937]
[1673609101279,1.87410141,18994.0,18993.0,0.00934937]
[1673609101534,2.87001503,18994.0,18993.0,0.00934937]
[1673609101869,3.42481503,18994.0,18993.0,0.00934937]
[1673609102096,2.73806881,18994.0,18993.0,0.00934937]
[1673609102381,1.36389873,18994.0,18993.0,0.00934937]
[1673609102644,1.44159977,18994.0,18993.0,0.00934937]
[1673609103470,2.14625584,18994.0,18993.0,0.00934937]
[1673609103747,1.91324431,18994.0,18993.0,0.00934937]
[1673609104005,2.21330431,18994.0,18993.0,0.00934937]
[1673609104266,1.97310066,18994.0,18993.0,0.00934937]
[1673609105115,2.44620923,18994.0,18993.0,0.00934937]
[1673609105643,1.97310066,18994.0,18993.0,0.00934937]
[1673609105900,1.67310066,18994.0,18993.0,0.00934937]
[1673609106157,2.14621407,18994.0,18993.0,0.00934937]
[1673609106428,1.37107548,18994.0,18993.0,0.00934937]
[1673609106951,1.37237788,18994.0,18993.0,0.00934937]
[1673609107237,1.67237788,18994.0,18993.0,0.00934937]
[1673609107508,1.67237788,18994.0,18993.0,0.21965431]
[1673609107509,1.71053972,18994.0,18993.0,0.21965431]
[1673609107811,1.06474302,18994.0,18993.0,0.00934937]
[1673609108073,1.45891941,18994.0,18993.0,0.00934937]
[1673609108873,1.13347433,18994.0,18993.0,0.71154294]
[1673609108874,0.84788644,18994.0,18993.0,0.71154294]
[1673609109143,0.67356879,18994.0,18993.0,0.71154294]
[1673609109424,0.85395635,18994.0,18993.0,0.71154294]
[1673609109685,0.97295635,18994.0,18993.0,0.71154294]
[1673609109944,0.43568996,18994.0,18993.0,0.71154294]
[1673609110203,0.82986635,18994.0,18993.0,0.71154294]
[1673609110456,0.67222547,18994.0,18993.0,0.71154294]
[1673609110719,0.85395926,18994.0,18993.0,0.71154294]
[1673609110980,0.98895926,18994.0,18993.0,0.71254294]
[1673609111250,0.84586635,18994.0,18993.0,0.71254294]
[1673609111788,0.84586635,18994.0,18993.0,0.71154294]
[1673609111789,0.71086635,18994.0,18993.0,0.71154294]
[1673609112068,0.44868996,18994.0,18993.0,0.71454294]
[1673609112334,0.39555504,18994.0,18993.0,0.71154294]
[1673609112609,0.39555504,18994.0,18993.0,1.03936294]
[1673609112876,0.29400025,18994.0,18993.0,1.13486294]
[1673609113167,0.0013024,18994.0,18993.0,0.92457431]
[1673609113419,0.0013024,18994.0,18993.0,0.71426937]
[1673609113984,0.0013024,18994.0,18993.0,0.71726937]
[1673609113985,0.1373024,18994.0,18993.0,0.71726937]
[1673609114243,0.0013024,18994.0,18993.0,0.71426937]
[1673609114521,0.0163024,18994.0,18993.0,0.74026937]
[1673609114789,0.0163024,18994.0,18993.0,0.71426937]
[1673609114790,0.0013024,18994.0,18993.0,0.71426937]
[1673609115056,0.0133024,18994.0,18993.0,0.73926937]
[1673609116126,0.0133024,18994.0,18993.0,1.31109693]
[1673609116386,0.0133024,18994.0,18993.0,1.72703492]
[1673609116653,0.0133024,18994.0,18993.0,2.02703492]
[1673609116908,0.0133024,18994.0,18993.0,1.57140736]
[1673609117432,0.0133024,18994.0,18993.0,1.72703492]
[1673609117682,0.0133024,18994.0,18993.0,2.02703492]
[1673609118735,0.0133024,18994.0,18993.0,1.87140736]
[1673609118989,0.0133024,18994.0,18993.0,1.57140736]
[1673609119296,0.0133024,18994.0,18993.0,1.87140736]
[1673609119502,0.0133024,18994.0,18993.0,2.02703492]
[1673609119978,0.11833902,18995.0,18994.0,0.1]
[1673609120246,0.11833902,18995.0,18994.0,2.13772]
[1673609120500,0.11833902,18995.0,18994.0,2.13912]
[1673609121007,0.12333902,18995.0,18994.0,2.16612]
[1673609122029,0.12333902,18995.0,18994.0,2.46612]
[1673609122297,0.12333902,18995.0,18994.0,2.16612]
[1673609122542,0.12333902,18995.0,18994.0,1.56612]
[1673609122789,0.12333902,18995.0,18994.0,1.14922]
[1673609125241,0.12333902,18995.0,18994.0,1.56512]
[1673609126383,0.12333902,18995.0,18994.0,1.86512]
[1673609127165,0.12463724,18995.0,18994.0,1.56512]
[1673609127422,0.12463724,18995.0,18994.0,2.08684931]
[1673609128500,0.12463724,18995.0,18994.0,1.56512]
[1673609128752,0.12463724,18995.0,18994.0,1.05252978]
[1673609128981,0.12457724,18995.0,18994.0,1.05252978]
[1673609129506,0.12457724,18995.0,18994.0,0.72470978]
[1673609133090,0.12457724,18995.0,18994.0,0.54050978]
[1673609133621,0.12457724,18995.0,18994.0,0.027]
[1673609134121,0.71827442,18995.0,18994.0,0.027]
[1673609137924,0.71327442,18995.0,18994.0,0.027]
[1673609139223,0.11957724,18995.0,18994.0,0.027]
[1673609139458,0.11957724,18995.0,18994.0,0.54939446]
[1673609141023,0.25489676,18995.0,18994.0,0.027]
[1673609141359,0.88327459,18995.0,18994.0,0.027]
[1673609142109,2.88327459,18995.0,18994.0,0.027]
[1673609143724,0.1,18994.0,18991.0,0.50904282]
[1673609143989,0.23531952,18994.0,18991.0,0.50904282]
[1673609144517,0.1,18994.0,18991.0,0.50904282]
[1673609144774,0.70343717,18993.0,18991.0,0.50904282]
[1673609145497,0.70343717,18993.0,18991.0,0.51204282]
[1673609145778,0.70343717,18993.0,18991.0,0.50904282]
[1673609146019,0.82443717,18993.0,18991.0,0.01477964]
[1673609146272,0.1,18992.0,18991.0,0.01477964]
[1673609147055,0.92443717,18993.0,18991.0,0.01477964]
[1673609147550,0.58139561,18992.0,18991.0,0.01477964]
[1673609147837,0.58139561,18992.0,18991.0,0.01177964]
[1673609148058,0.70439561,18992.0,18991.0,0.01577964]
[1673609148311,0.58139561,18992.0,18991.0,0.01177964]
[1673609148577,0.58139561,18992.0,18991.0,0.01577964]
[1673609148841,0.58139561,18992.0,18991.0,0.01177964]
[1673609149131,0.58139561,18992.0,18991.0,0.01577964]
[1673609149132,0.70439561,18992.0,18991.0,0.01577964]
[1673609149933,1.60799346,18992.0,18991.0,0.01577964]
[1673609150195,2.36591028,18992.0,18991.0,0.01577964]
[1673609151019,1.90799346,18992.0,18991.0,0.01577964]
[1673609152331,1.90805346,18992.0,18991.0,0.01577964]
[1673609152589,1.45035561,18992.0,18991.0,0.01577964]
[1673609154496,1.75035561,18992.0,18991.0,0.01577964]
[1673609155044,1.45035561,18992.0,18991.0,0.01577964]
[1673609155294,1.26545561,18992.0,18991.0,0.01577964]
[1673609155550,1.36545561,18992.0,18991.0,0.01577964]
[1673609157131,1.26545561,18992.0,18991.0,0.01577964]
[1673609157388,1.26539561,18992.0,18991.0,0.01577964]
[1673609158417,0.68529732,18992.0,18991.0,0.57767307]
[1673609159231,0.12429732,18992.0,18991.0,0.57767307]